Cogmind - Beta 17 @@@ ROGUE MODE // 2026.08.22 @ 23:03:04 Player: Boatmurdered Result: Destroyed by P-80 Master with Gamma Rifle Performance ------------- Evolutions (7) 3500 Regions Visited (10) 2000 Robots Destroyed (90) 450 Value Destroyed (3810) 3810 Prototype IDs (31) 620 Alien Tech Used (0) 0 Bonus (3265) 3265 TOTAL SCORE: 13645 Bonus ------- High Alert Combat Kills 160 Follower Combat Kills 805 Entered DSFs 500 Registered with UFD 300 Met Optimus in HQ 500 Hacked Protovariant 500 Scanned by Researcher 500 Cogmind --------- Core Integrity 0/1300 Matter 300/300 Energy 100/100 System Corruption 25% Temperature Cool (0) Movement Core (50) Location -3/Testing Parts ------- > --- POWER (1) -------- (None) > --- PROPULSION (9) --- (None) > --- UTILITY (9) ------ Advanced Melee Analysis Suite System Mapper > --- WEAPON (2) ------- (None) > --- INVENTORY (5) ---- Advanced Sensor Array DRS Beacon (Ready) Peak State ------------ > --- POWER ------------ Light Particle Reactor > --- PROPULSION ------- Enhanced Flexi-carbon Leg Advanced Myomer Leg High-density Centrium Wheel > --- UTILITY ---------- Advanced Signal Interpreter Advanced Melee Analysis Suite Light Regenerative Plating Heavy Regenerative Plating SHELL Armor System Mapper > --- WEAPON ----------- Compact HERF Cannon Companion Sword > --- INVENTORY -------- Light Antimatter Reactor Advanced Sensor Array Heavy Regenerative Plating DRS Beacon [Rating: 120] Favorites ----------- Power Ion Engine Engine Ion Engine Power Core Nuclear Core Reactor Light Antimatter Reactor Propulsion Light Treads Treads Light Treads Leg Carbon-fiber Leg Wheel High-density Centrium Wheel Hover Unit Antigrav Array Flight Unit Field Propulsion Drive Utility Huge Storage Unit Device Improved Heat Sink Storage Huge Storage Unit Processor Advanced Melee Analysis Suite Hackware Hacking Suite Protection Hardened Light Armor Plating Weapon Beam Cannon Energy Gun Small Laser Energy Cannon Beam Cannon Ballistic Gun High-powered Shotgun Ballistic Cannon Battle Cannon Special Weapon Junk Cannon Impact Weapon Hammer Slashing Weapon Companion Sword Special Melee Weapon Improved Datajack Build | -11 -10 -10 -8 -6 -5 -5 -4 -4 -3 -3 ------- Run | Yrd Mat Sub Scr Fac Fac DSF Fac Ext Res Tes Slots Evolved 14 | . . . . 8 2 . 2 . 2 . Power . | . . . . . . . . . . . Propulsion 7 | . . . . 4 . . 2 . 1 . Utility 7 | . . . . 4 2 . . . 1 . Weapon . | . . . . . . . . . . . Parts Attached 136 | 7 20 5 11 23 . 14 5 11 24 16 Power 19 | 1 4 . 3 . . 1 . 3 4 3 Engine 7 | 1 4 . 1 . . 1 . . . . Core 3 | . . . 2 . . . . 1 . . Reactor 9 | . . . . . . . . 2 4 3 Propulsion 36 | 2 3 1 2 5 . 5 3 1 12 2 Treads 8 | 2 3 1 2 . . . . . . . Leg 4 | . . . . 2 . . . . 1 1 Wheel 1 | . . . . . . . . . . 1 Hover 1 | . . . . . . . . . 1 . Flight 22 | . . . . 3 . 5 3 1 10 . Utility 55 | 2 6 1 1 15 . 6 2 6 7 9 Device 26 | 1 3 1 . 8 . 3 . 3 6 1 Storage 7 | 1 3 . . 2 . . . 1 . . Processor 13 | . . . . 4 . 3 . 2 1 3 Hackware 2 | . . . . . . . 1 . . 1 Protection 7 | . . . 1 1 . . 1 . . 4 Artifact . | . . . . . . . . . . . Weapon 26 | 2 7 3 5 3 . 2 . 1 1 2 Energy Gun 5 | 1 2 . . . . . . . 1 1 Energy Cannon 6 | . 3 2 . . . . . . . 1 Ballistic Gun 4 | 1 . 1 2 . . . . . . . Ballistic Cannon 2 | . . . 2 . . . . . . . Launcher . | . . . . . . . . . . . Special Weapon 3 | . 1 . 1 . . . . 1 . . Impact Weapon 1 | . 1 . . . . . . . . . Slashing Weapon 3 | . . . . 1 . 2 . . . . Piercing Weapon . | . . . . . . . . . . . Special Melee Weapon 2 | . . . . 2 . . . . . . Unidentified Prototypes 9 | . . . 1 1 . . . . 2 5 Parts Lost 70 | . 3 3 . 16 . . . 15 18 15 Power 8 | . 1 . . 1 . . . 2 2 2 Propulsion 32 | . . 1 . 8 . . . 8 11 4 Utility 22 | . . 1 . 6 . . . 4 5 6 Weapon 8 | . 2 1 . 1 . . . 1 . 3 Highest Loss Streak 12 | . 3 2 . 8 . . . 9 12 10 To Critical Strikes 1 | . . . . . . . . 1 . . Average Backups 15 | 2 9 16 21 17 4 4 2 3 3 1 Power 2 | . 1 3 3 2 1 . . 1 1 . Propulsion 2 | . . 2 4 1 1 2 1 . . . Utility 4 | . 3 4 5 3 1 1 1 1 1 . Weapon 5 | 1 3 4 7 8 1 . . . . . Tool/Special . | . . . . . . . . . . . Unused Backups 13 | . 3 . 3 5 . 2 . . . . Power 3 | . 1 . 1 1 . . . . . . Propulsion 1 | . . . . . . 1 . . . . Utility 4 | . 1 . 2 1 . . . . . . Weapon 5 | . 1 . . 3 . 1 . . . . Tool/Special . | . . . . . . . . . . . Average Slot Usage (%) 92 | . 99 99 94 88 29 66 99 76 67 62 Engine 7 | . 14 14 9 . . 2 5 2 . . Core 3 | . . . 4 5 . . . . . . Treads 24 | . 28 27 28 25 . . . . . . Leg 2 | . . . . 9 . . . . . 7 Flight 2 | . . . . . 5 29 41 28 17 2 Device 13 | . 14 13 8 23 . 3 10 7 13 5 Storage 10 | . 14 14 14 5 . . . . . . Processor 2 | . . . . 1 17 21 25 18 22 21 Protection 3 | . . . 5 5 . . 2 2 . 4 Energy Cannon 8 | . 22 22 6 . . . . . . 1 Ballistic Gun 3 | . 1 3 7 1 . . . . . . Ballistic Cannon 1 | . . . 3 . . . . . . . Special Weapon 1 | . . . . 4 . . . . 2 . Impact Weapon 2 | . . 2 6 . . . . . . . Peak Build Rating 120 | 7 11 13 26 61 21 83 89 89 102 120 Average Rating 29 | 5 8 10 17 53 21 59 87 67 70 90 On Entrance 32 | . 7 9 13 24 21 21 80 87 46 50 Avg Prop Armor Cover (%) 6 | . . . . 6 . 18 8 7 6 6 Naked Turns . | . . . . . . . . . . . Heaviest Build 116 | 14 92 97 106 116 4 19 20 36 27 80 Greatest Support 125 | 40 40 40 43 125 4 39 51 51 59 58 Greatest Overweight (x) 5 | . 2 2 2 5 . . . . 1 3 Average Overweight (x) . | . . 2 1 . . . . . . . Largest Inventory Capacity 25 | 8 25 25 25 25 5 5 5 10 5 5 Average Capacity 20 | 7 11 25 25 24 5 5 5 6 5 5 Most Carried 25 | 6 16 19 25 25 5 5 4 6 5 5 Average Carried 16 | 2 9 16 23 18 5 4 3 4 4 2 Final Capacity 25 | 8 25 25 25 5 5 5 5 5 5 5 Final Carried 25 | 6 16 19 25 5 5 5 3 5 5 2 Class Distribution -------------------- 56% | Mutant 30% | Derelict-Mutant 3% | Sprinter Dominant Class ---------------- Mutant | -10/Materials Mutant | -10/Subcaves Mutant | -8/Scraptown Derelict-Mutant | -6/Factory Derelict-Mutant | -5/Factory Derelict-Mutant | -5/DSF Sprinter | -4/Factory Sprinter | -4/Extension Mutant | -3/Research Hacker-Mutant | -3/Testing Resources | -11 -10 -10 -8 -6 -5 -5 -4 -4 -3 -3 ----------- Run | Yrd Mat Sub Scr Fac Fac DSF Fac Ext Res Tes Matter Collected 2089 | 229 388 169 128 447 . 44 . 312 140 232 Remotely . | . . . . . . . . . . . Salvage Created 4062 | 103 666 350 . 1198 . 35 . 723 204 783 Parts 193 | 15 42 21 . 42 . 1 . 27 18 27 Haulers Intercepted 2 | . 2 . . . . . . . . . Recyclers Shooed 3 | 1 . . . 2 . . . . . . Parts Field Recycled . | . . . . . . . . . . . Retrieved Matter . | . . . . . . . . . . . Parts Self-Destructed 14 | . . 14 . . . . . . . . Prevented . | . . . . . . . . . . . Parts Restored . | . . . . . . . . . . . Kills | -11 -10 -10 -8 -6 -5 -5 -4 -4 -3 -3 ------- Run | Yrd Mat Sub Scr Fac Fac DSF Fac Ext Res Tes Combat Hostiles Destroyed 69 | . 15 8 . 24 . 1 . 6 5 10 Melee 25 | . . . . 5 . 1 . 6 5 8 Guns 8 | . 7 . . . . . . . . 1 Cannons 21 | . 8 6 . 7 . . . . . . AOE 2 | . . . . 2 . . . . . . Classes Destroyed 14 | 2 5 1 . 4 . 1 . . . 1 Worker 2 | . . . . 2 . . . . . . Tunneler 3 | 3 . . . . . . . . . . Hauler 2 | . 2 . . . . . . . . . Recycler 5 | 1 . . . 2 . . . 2 . . Operator 1 | . 1 . . . . . . . . . Watcher 5 | . 3 . . . . . . 1 . 1 Swarmer 21 | . 6 . . 7 . . . . 4 4 Cutter 1 | . . . . . . 1 . . . . Grunt 22 | . 9 2 . 4 . . . 3 . 4 Researcher 3 | . . . . . . . . . . 3 Sentry 5 | . . . . 3 . . . 2 . . Hunter 3 | . . . . 1 . . . 1 . 1 Programmer 11 | . . . . 9 . . . . 1 1 Subdweller 6 | . . 6 . . . . . . . . Best Kill Streak 6 | 3 3 3 . 5 . 1 . 5 2 6 Combat Bots Only 5 | . 3 3 . 4 . 1 . 2 2 5 Max Kills in Single Turn 2 | 1 2 1 . 1 . 1 . 1 1 1 Gunslinging 1 | . 1 . . . . . . . . . Exploded 1 | . . . . 1 . . . . . . Melee 1 | . . . . 1 . 1 . 1 1 1 Uniques/NPCs Destroyed . | . . . . . . . . . . . Combat | -11 -10 -10 -8 -6 -5 -5 -4 -4 -3 -3 -------- Run | Yrd Mat Sub Scr Fac Fac DSF Fac Ext Res Tes Hostile Shots Fired 1042 | . 59 44 . 297 . 9 10 83 103 437 Missed 288 | . 14 6 . 91 . 1 6 37 31 102 Hits 754 | . 45 38 . 206 . 8 4 46 72 335 Melee 4 | . . . . . . 4 . . . . Projectile 750 | . 45 38 . 206 . 4 4 46 72 335 Critical Strikes 33 | . . 3 . 7 . 2 . 5 2 14 Actively Blocked 2 | . . . . . . . . 2 . . Part Disruptions 2 | . . . . . . . . . . 2 Damage Taken 12561 | . 726 761 . 2721 . 187 87 887 1885 5307 Core 2532 | . 119 115 . 656 . 161 . 164 840 477 Absorbed by Shields 46 | . . . . . . . . 46 . . Redirected to Shielding 118 | . . . . . . . 27 91 . . Ignored by Resistances 120 | . . . . 120 . . . . . . Regen/Repaired (Parts) 1222 | . 135 . 398 . . . . . . 689 Core Remaining (%) 59 | 100 . . 6 22 . 83 . 85 . . Volleys Fired 173 | 5 57 33 . 47 . . . . . 31 Largest 2 | 2 2 2 . 1 . . . . . 2 Hottest 157 | 60 120 120 . . . . . . . 157 Shots Fired 253 | 10 103 58 . 47 . . . . . 35 Gun 76 | 10 32 7 . . . . . . . 27 Cannon 126 | . 67 51 . . . . . . . 8 Launcher . | . . . . . . . . . . . Special 51 | . 4 . . 47 . . . . . . Kinetic 21 | 5 9 7 . . . . . . . . Thermal 177 | 5 94 51 . . . . . . . 27 Explosive . | . . . . . . . . . . . Electromagnetic 8 | . . . . . . . . . . 8 Impact 47 | . . . . 47 . . . . . . Robot Hit Streak 28 | 8 14 23 . 28 . . . . . 8 Robot Miss Streak 4 | 1 4 2 . 4 . . . . . 2 Penetration Max . | . . . . . . . . . . . Secondary Targets 1 | . 1 . . . . . . . . . Max Gunslinging Chain 1 | . 1 . . . . . . . . . Shots Hit Robots 258 | 8 60 44 . 54 . 2 . 22 11 57 Core Hits 100 | 5 26 11 . 11 . 1 . 14 6 26 Critical Kills 5 | . 1 2 . 2 . . . . . . Critical Parts Destroyed 8 | . . . . 8 . . . . . . Critical Strikes 18 | . 2 2 . 11 . . . . 2 1 Burn 2 | . 1 . . . . . . . . 1 Meltdown 2 | . . 2 . . . . . . . . Destroy 1 | . 1 . . . . . . . . . Smash 11 | . . . . 11 . . . . . . Melee Attacks 146 | . 1 9 . 31 . 5 4 31 20 45 Impact 10 | . 1 9 . . . . . . . . Slashing 134 | . . . . 29 . 5 4 31 20 45 Piercing . | . . . . . . . . . . . Sneak Attacks 11 | . . . . 4 . . . 5 1 1 Combat Hostiles . | . . . . . . . . . . . Follow-up Attacks 3 | . . . . . . . . 3 . . Damage Inflicted 10120 | 92 919 904 . 4367 . 77 . 1231 491 2039 Guns 889 | 92 286 133 . . . . . . . 378 Cannons 1560 | . 585 771 . . . . . . . 204 Explosions 434 | . . . . 434 . . . . . . Melee 3801 | . . . . 727 . 77 . 1231 491 1275 Ramming 185 | . . . . 3 . . . . . 182 Kinetic 266 | 48 85 133 . . . . . . . . Thermal 2461 | 44 834 771 . 434 . . . . . 378 Explosive . | . . . . . . . . . . . Electromagnetic 204 | . . . . . . . . . . 204 Impact 3203 | . . . . 3203 . . . . . . Slashing 3801 | . . . . 727 . 77 . 1231 491 1275 Piercing . | . . . . . . . . . . . Highest Corruption 24 | . . . . 5 . . . 1 2 24 Average Corruption 2 | . . . . 2 . . . 1 1 3 Corruption Purged . | . . . . . . . . . . . Corruption Blocked . | . . . . . . . . . . . Effects 52 | . . . . 33 . . . 2 1 16 Message Errors 11 | . . . . 10 . . . . . 1 Matter Fused 14 | . . . . 8 . . . 1 . 5 Heat Flow Errors 3 | . . . . 1 . . . . . 2 Energy Discharges 6 | . . . . 6 . . . . . . Parts Rejected 1 | . . . . 1 . . . . . . Data Loss (minor) 7 | . . . . 6 . . . . . 1 Data Loss (major) 3 | . . . . 1 . . . . 1 1 Misfires 3 | . . . . . . . . . . 3 Alerts 2 | . . . . . . . . 1 . 1 Misdirections 1 | . . . . . . . . . . 1 Weapon Failures 1 | . . . . . . . . . . 1 Overload Shots . | . . . . . . . . . . . Overflow Damage 2156 | . 17 . . 2029 . . . 61 17 32 Projectiles 1778 | . 17 . . 1761 . . . . . . Explosions 159 | . . . . 159 . . . . . . Melee 219 | . . . . 109 . . . 61 17 32 Knockbacks 21 | . . . . 21 . . . . . . Impact 19 | . . . . 19 . . . . . . Kinetic . | . . . . . . . . . . . Secondary 2 | . . . . 2 . . . . . . Self-Inflicted Damage 430 | . . . . 410 . . . . . 20 Shots 6 | . . . . 6 . . . . . . Rammed 17 | . . . . 2 . . . . . 15 Targets Rammed 52 | . . . . 2 . . . . . 50 Kicked 35 | . . . . . . . . . . 35 Crushed . | . . . . . . . . . . . Highest Temperature 416 | . 240 294 . 84 . . 259 109 189 416 Average Temperature 101 | . 61 169 . 39 . . 172 35 62 179 Received Heat Transfer 1486 | . 150 578 . 252 . . 9 124 174 199 Effects 4 | . 2 1 . . . . . . . 1 Shutdowns 1 | . . . . . . . . . . 1 Interference 3 | . 2 1 . . . . . . . . Siege Activations . | . . . . . . . . . . . Martial Activations . | . . . . . . . . . . . Shielding Activations . | . . . . . . . . . . . Robots Disrupted 2 | . . . . . . . . 1 1 . Combat Hostiles 2 | . . . . . . . . 1 1 . Robots Corrupted 11 | . . . . 10 . . . . . 1 Combat Hostiles 11 | . . . . 10 . . . . . 1 Parts Fried 14 | . . . . 11 . . . . . 3 Impact Corruptions 40 | . . . . 39 . . . . . 1 Robots Melted 2 | . . 2 . . . . . . . . Combat Hostiles 2 | . . 2 . . . . . . . . Parts Melted 9 | . 4 4 . . . . . . . 1 Heat Transferred 4364 | 100 1881 1443 . 200 . . . . . 740 Parts Sabotaged . | . . . . . . . . . . . Parts Stolen . | . . . . . . . . . . . Parts Stripped . | . . . . . . . . . . . Power Chain Reactions . | . . . . . . . . . . . Alert | -11 -10 -10 -8 -6 -5 -5 -4 -4 -3 -3 ------- Run | Yrd Mat Sub Scr Fac Fac DSF Fac Ext Res Tes Maximum Alert Level 2 | . . . . 2 1 1 1 2 2 1 Low Security (%) 58 | 100 100 . . 36 . . 88 71 . 21 Level 1 35 | . . . . 52 100 100 11 14 97 78 Level 2 6 | . . . . 10 . . . 14 2 . Level 3 . | . . . . . . . . . . . Level 4 . | . . . . . . . . . . . Level 5 . | . . . . . . . . . . . High Security . | . . . . . . . . . . . Max Security . | . . . . . . . . . . . Peak Influence 652 | 10 181 . . 652 318 291 348 550 422 300 Initial 318 | . . . . . 318 226 152 170 285 232 Average 149 | 1 36 . . 202 318 252 154 157 317 233 Influence Increases 3970 | 20 496 50 . 1158 5 65 266 935 507 468 Destroy 0b10 Robot/C 1680 | . 300 40 . 480 . 20 . 480 100 260 Destroy 0b10 Robot/NC 95 | 20 30 . . 20 . . . 20 . 5 Destroy Leader 334 | . 70 10 . 160 . . . 52 10 32 Allied During Kill 69 | . . . . . . . . 69 . . Successful Hack 225 | . 31 . . 48 5 . 3 34 29 75 Disable Machine 345 | . 15 . . 270 . . . 15 . 45 Destroy Structure 127 | . 5 . . 90 . . 8 10 8 6 Partial Spotted 30 | . . . . . . . . . 30 . Lose Combat Pursuer 1065 | . 45 . . 90 . 45 255 255 330 45 Influence Decreases 3798 | 20 331 215 . 507 333 97 209 739 637 710 Entered New Map 1268 | . . 80 . . 333 97 139 178 259 182 Time Decay 1705 | 20 301 135 . 366 . . 70 337 198 278 Search Patrol Dispatched 100 | . . . . . . . . . . 100 Lost Part 551 | . 30 . . 141 . . . 50 180 150 Lost Ally 127 | . . . . . . . . 127 . . Purge Threat 47 | . . . . . . . . 47 . . Squads Dispatched 35 | . 2 . . 12 . 1 1 5 5 9 Investigation 12 | . 1 . . 3 . . 1 4 2 1 Extermination 10 | . . . . 7 . . . . 2 1 Reinforcement 11 | . 1 . . 1 . 1 . 1 1 6 Assault 2 | . . . . 1 . . . . . 1 Garrison . | . . . . . . . . . . . Intercept . | . . . . . . . . . . . Searches Triggered 1 | . . . . . . . . . . 1 Construction Impeded . | . . . . . . . . . . . Haulers Reinforced . | . . . . . . . . . . . Active Scanning Responses . | . . . . . . . . . . . Cargo Convoy Interrupts . | . . . . . . . . . . . Stealth | -11 -10 -10 -8 -6 -5 -5 -4 -4 -3 -3 --------- Run | Yrd Mat Sub Scr Fac Fac DSF Fac Ext Res Tes Distress Signals 5 | . 1 . . 1 . . 1 1 . 1 Communications Jammed . | . . . . . . . . . . . Distress Signals . | . . . . . . . . . . . Times Spotted 165 | . 24 8 . 39 . 2 13 31 28 20 Peak Tracking Total 14 | . 4 2 . 5 . 2 14 11 10 9 Tactical Retreats 30 | . 2 . . 5 . 2 3 8 8 2 Traps | -11 -10 -10 -8 -6 -5 -5 -4 -4 -3 -3 ------- Run | Yrd Mat Sub Scr Fac Fac DSF Fac Ext Res Tes Traps Triggered 5 | . 1 . . . . 1 . 1 2 . Indirectly . | . . . . . . . . . . . Trap Hack Attempts . | . . . . . . . . . . . Triggered . | . . . . . . . . . . . Disarmed 4 | . 4 . . . . . . . . . Reprogrammed . | . . . . . . . . . . . Reused . | . . . . . . . . . . . Traps Extracted . | . . . . . . . . . . . Installed . | . . . . . . . . . . . Triggered . | . . . . . . . . . . . Machines | -11 -10 -10 -8 -6 -5 -5 -4 -4 -3 -3 ---------- Run | Yrd Mat Sub Scr Fac Fac DSF Fac Ext Res Tes Machines Disabled 24 | . 1 . . 18 . . . 2 . 3 Max in Single Turn 13 | . 1 . . 13 . . . 1 . 1 Garrison Access 1 | . . . . . . . 1 . . . Machines Repaired . | . . . . . . . . . . . Machines Dismantled . | . . . . . . . . . . . Machines Sabotaged . | . . . . . . . . . . . Overloaded Fab Kills . | . . . . . . . . . . . Hacking | -11 -10 -10 -8 -6 -5 -5 -4 -4 -3 -3 --------- Run | Yrd Mat Sub Scr Fac Fac DSF Fac Ext Res Tes Machines Accessed 59 | . 11 . 5 11 1 . 4 16 3 8 Terminals 42 | . 8 . . 7 1 . 2 14 3 7 Fabricators 1 | . . . . 1 . . . . . . Repair Stations 1 | . 1 . . . . . . . . . Recycling Units 8 | . 2 . . 3 . . 1 2 . . Scanalyzers 1 | . . . . . . . . . . 1 Garrison Access 1 | . . . . . . . 1 . . . Total Hacks 140 | . 37 . 13 24 1 . 7 33 7 18 Successful 79 | . 25 . 13 10 1 . 3 13 2 12 Failed 60 | . 11 . . 14 . . 4 20 5 6 Catastrophic 11 | . 1 . . 4 . . . 3 3 . Database Lockouts 1 | . 1 . . . . . . . . . Manual 59 | . 28 . . 20 . . 4 4 3 . Terminals 98 | . 27 . . 16 1 . 3 29 7 15 Fabricators 1 | . . . . 1 . . . . . . Repair Stations 4 | . 4 . . . . . . . . . Recycling Units 20 | . 6 . . 7 . . 3 4 . . Scanalyzers 3 | . . . . . . . . . . 3 Garrison Access 1 | . . . . . . . 1 . . . Terminal Hacks 42 | . 5 . 13 . 1 . 1 11 1 10 Record 13 | . . . 11 . . . . 1 . 1 Part Schematic 2 | . . . . . . . . 1 . 1 Robot Analysis 1 | . 1 . . . . . . . . . Prototype ID Bank 1 | . 1 . . . . . . . . . Open Door 11 | . . . 1 . . . 1 8 . 1 Open DSF 1 | . . . . . 1 . . . . . Branch Access Points 1 | . . . . . . . . . . 1 Emergency Access Points 1 | . . . . . . . . . . 1 Terminal Index 2 | . . . . . . . . . 1 1 Unreport Threat 1 | . . . . . . . . 1 . . Locate Traps 3 | . 2 . . . . . . . . 1 Disarm Traps 1 | . 1 . . . . . . . . . Zone Layout 2 | . . . . . . . . . . 2 Proto ID Catalog 1 | . . . 1 . . . . . . . Protovariant Controls 1 | . . . . . . . . . . 1 Fabricator Hacks . | . . . . . . . . . . . Repair Station Hacks 4 | . 4 . . . . . . . . . Scan Component 2 | . 2 . . . . . . . . . Repair 2 | . 2 . . . . . . . . . Recycling Unit Hacks 4 | . 2 . . . . . 1 1 . . Retrieve Components 4 | . 2 . . . . . 1 1 . . Scanalyzer 2 | . . . . . . . . . . 2 Retrieve Study 2 | . . . . . . . . . . 2 Garrison Access Hacks 1 | . . . . . . . 1 . . . Seal Access 1 | . . . . . . . 1 . . . Unauthorized Hacks 26 | . 14 . . 10 . . . 1 1 . Terminals 20 | . 12 . . 7 . . . . 1 . Botnet 10 | . 5 . . 4 . . . . 1 . Operators 1 | . 1 . . . . . . . . . Skim 9 | . 6 . . 3 . . . . . . Fabricators . | . . . . . . . . . . . Repair Stations . | . . . . . . . . . . . Recycling Units 6 | . 2 . . 3 . . . 1 . . Reject 1 | . 1 . . . . . . . . . Mask 1 | . 1 . . . . . . . . . Fedlink 4 | . . . . 3 . . . 1 . . Scanalyzers . | . . . . . . . . . . . Garrison Access . | . . . . . . . . . . . Data Cores Recovered . | . . . . . . . . . . . Used . | . . . . . . . . . . . Hacking Detections 47 | . 11 . . 11 . . 2 13 3 7 Full Trace Events 7 | . 1 . . . . . 1 3 1 1 Feedback Events . | . . . . . . . . . . . Feedback Blocked . | . . . . . . . . . . . Robot Schematics Acquired 4 | . . . . . . . . . . 4 Robots Built . | . . . . . . . . . . . Authchips . | . . . . . . . . . . . Time . | . . . . . . . . . . . Total Robot Build Rating . | . . . . . . . . . . . Part Schematics Acquired 9 | . . . . . . . . 1 . 8 Parts Built . | . . . . . . . . . . . Authchips . | . . . . . . . . . . . Time . | . . . . . . . . . . . Total Part Build Rating . | . . . . . . . . . . . Part Studies Acquired 2 | . . . . . . . . . . 2 Parts Repaired 2 | . 2 . . . . . . . . . Time 52 | . 52 . . . . . . . . . Parts Recycled . | . . . . . . . . . . . Recycled Matter . | . . . . . . . . . . . Retrieved Matter . | . . . . . . . . . . . Retrieved Components 12 | . 6 . . . . . 3 3 . . Parts Scanalyzed . | . . . . . . . . . . . Part Schematics Acquired . | . . . . . . . . . . . Parts Damaged . | . . . . . . . . . . . Bothacking | -11 -10 -10 -8 -6 -5 -5 -4 -4 -3 -3 ------------ Run | Yrd Mat Sub Scr Fac Fac DSF Fac Ext Res Tes Used RIF Installer . | . . . . . . . . . . . Robots Hacked 1 | . . . . 1 . . . . . . Non-combat 1 | . . . . 1 . . . . . . Combat . | . . . . . . . . . . . Robot Hacks Applied 1 | . . . . 1 . . . . . . no_distress 1 | . . . . 1 . . . . . . Relay Couplers Released . | . . . . . . . . . . . Fabnet Peak Effective % . | . . . . . . . . . . . Robots Rewired . | . . . . . . . . . . . Allies Hacked . | . . . . . . . . . . . Hacks Repelled . | . . . . . . . . . . . Allies | -11 -10 -10 -8 -6 -5 -5 -4 -4 -3 -3 -------- Run | Yrd Mat Sub Scr Fac Fac DSF Fac Ext Res Tes Total Allies 10 | . . . . . . . . 10 . . Largest Group 3 | . . . . . . . . 3 1 . Highest-Rated Group 205 | . . . . . . . . 205 146 . Highest-Rated Ally 159 | . . . . . . . . 159 146 . Initial UFD Resources 57 | . . . . 23 43 43 45 45 57 57 Total Orders . | . . . . . . . . . . . Ally Attacks 94 | . . . . . . . . 94 . . Total Damage 2609 | . . . . . . . . 2609 . . Kills 20 | . . . . . . . . 20 . . Allies Corrupted . | . . . . . . . . . . . Allies Melted . | . . . . . . . . . . . Intel | -11 -10 -10 -8 -6 -5 -5 -4 -4 -3 -3 ------- Run | Yrd Mat Sub Scr Fac Fac DSF Fac Ext Res Tes Active Infowar (turns) 9922 | 73 2810 1241 . 4246 2 89 142 863 294 162 Optics 161 | . . . . . . . . . . 161 Sensors 718 | . . . . . . 1 112 484 . 121 IFF 4090 | . . . . 4090 . . . . . . Terrain 4270 | . . . . 4185 . . . . 85 . Seismic 4124 | 73 2810 1241 . . . . . . . . Machine Analysis 1492 | . . . . 102 2 89 142 863 294 . Cloaking 1 | . . . . . . 1 . . . . Robot Analysis Total 1 | . 1 . . . . . . . . . Derelict Logs Recovered 3 | . . 1 2 . . . . . . . Drone Launches . | . . . . . . . . . . . Drone Recoveries . | . . . . . . . . . . . Exploration | -11 -10 -10 -8 -6 -5 -5 -4 -4 -3 -3 ------------- Run | Yrd Mat Sub Scr Fac Fac DSF Fac Ext Res Tes Turns Passed 19065 | 142 3012 2288 7259 4251 2 89 142 863 402 615 Spaces Moved 7063 | 66 819 546 2269 1285 3 122 425 695 561 272 Core 27 | 4 . . . 7 . . . . 14 2 Treads 4857 | 62 819 546 2269 1161 . . . . . . Legs 259 | . . . . . . . . . 1 258 Wheels 12 | . . . . . . . . . . 12 Hover 100 | . . . . . . . . . 100 . Flight 1808 | . . . . 117 3 122 425 695 446 . Fastest Speed 16 | 50 160 320 250 34 35 28 21 21 16 50 Average Speed 200 | 153 176 321 316 214 35 28 28 35 38 121 Slowest Speed 660 | 160 320 340 340 660 35 37 31 45 120 190 Overloaded Moves . | . . . . . . . . . . . Propulsion Burnouts . | . . . . . . . . . . . Robots Hopped 10 | . . . . 1 . . 1 6 2 . Potential Cave-ins . | . . . . . . . . . . . Cave-ins Triggered . | . . . . . . . . . . . Exploration Rate (%) 48 | 4 99 40 92 32 . 85 9 75 17 27 Regions Visited 10 Branch Regions 4 Pre-discovered Areas 4 | . 1 . 2 1 . . . . . . Known Exits Taken 2 | . 1 . . . 1 . . . . . Unknown Exits Taken 7 | 1 . 1 1 1 . . 1 1 1 . Scrap Searched 7 | . . . 7 . . . . . . . Spaces Dug 22 | . 3 . . 7 . . 4 1 4 3 Terrain Destroyed 127 | . 3 . . 112 . . 4 1 4 3 Melee 20 | . 1 . . 7 . . 4 1 4 3 Projectile 9 | . 2 . . 7 . . . . . . AOE 98 | . . . . 98 . . . . . . Terrain Rammed . | . . . . . . . . . . . Walls Destroyed . | . . . . . . . . . . . Machines Disabled . | . . . . . . . . . . . Actions | -11 -10 -10 -8 -6 -5 -5 -4 -4 -3 -3 --------- Run | Yrd Mat Sub Scr Fac Fac DSF Fac Ext Res Tes Total 11416 | 93 2265 1002 2352 2685 3 161 438 1262 712 443 Wait 3623 | 10 1327 391 32 1235 . 12 3 506 98 9 Move 7034 | 65 818 545 2268 1282 3 121 422 682 556 272 Hop 10 | . . . . 1 . . 1 6 2 . Pick Up 66 | 6 16 5 15 11 . 3 . 4 3 3 Fast Attach 77 | 7 4 1 2 9 . 15 2 9 18 10 Attach 53 | . 3 3 4 25 . 1 2 4 4 7 Detach 21 | . . . 2 10 . . . 2 2 5 Swap 68 | . 26 14 12 9 . . 2 2 2 1 Drop 77 | . 13 1 17 23 . 4 2 4 7 6 Fire 173 | 5 57 33 . 47 . . . . . 31 Melee 143 | . 1 9 . 31 . 5 4 28 20 45 Ram 16 | . . . . . . . . . . 16 Kick 35 | . . . . . . . . . . 35 Crush 2 | . . . . 2 . . . . . . Escape Stasis 18 | . . . . . . . . 15 . 3 Rewire . | . . . . . . . . . . . Trap . | . . . . . . . . . . . Miscellaneous . | . . . . . . . . . . . Route ------- -11/Scrapyard -10/Materials (discovered 5 exits: [*Mat x3] / [*Min] / *Sub) -10/Subcaves (discovered 4 exits: Mat x2 / Rec / *Scr) -8/Scraptown (discovered 2 exits: *Fac x2) -6/Factory -5/Factory -5/DSF -4/Factory -4/Extension (discovered 2 exits: *Res / [*Cet]) -3/Research (discovered 2 exits: Res / *Tes) -3/Testing History --------- Turn | Location | Event 33 | -11/Scrapyard | Discovered new exit (range 15) 143 | -11/Scrapyard | Entered Materials 315 | -10/Materials | Build established: Mutant 354 | -10/Materials | Discovered new exit (range 15) 457 | -10/Materials | Lost 3 parts (1p2w) 792 | -10/Materials | Central database locked down 882 | -10/Materials | Discovered new exit (range 16) 2022 | -10/Materials | Discovered new exit (range 15) 2573 | -10/Materials | Discovered new exit (range 11) 2610 | -10/Materials | Learned 2 Mines zone layouts 2743 | -10/Materials | Learned 4 Subcaves zone layouts 2861 | -10/Materials | Learned location of 2 exits from Subcaves 2954 | -10/Materials | Identified exit to Subcaves 3030 | -10/Materials | Repaired Beam Cannon 3058 | -10/Materials | Repaired Lgt. Treads 3069 | -10/Materials | Learned location of 2 exits from Materials 3155 | -10/Materials | Entered Subcaves 3156 | -10/Subcaves | Approached by a straggling Scientist 3156 | -10/Subcaves | Identified exit to Recycling 3157 | -10/Subcaves | Identified exit to Materials 3336 | -10/Subcaves | A swath of the cavern ceiling suddenly collapsed 4388 | -10/Subcaves | Core integrity fell below 50% 4455 | -10/Subcaves | A swath of the cavern ceiling suddenly collapsed 4753 | -10/Subcaves | Core integrity fell below 20% 5308 | -10/Subcaves | Shifting Twisted Machinery released Spk. Treads 5311 | -10/Subcaves | Shifting Twisted Machinery released Battle Cannon 5437 | -10/Subcaves | Scientist uncovered a shortcut to Scraptown 5443 | -10/Subcaves | Entered Scraptown 6174 | -8/Scraptown | Scanned Subdweller tech in exchange for log data 6184 | -8/Scraptown | Learned location of 1 exit from Research 6187 | -8/Scraptown | Learned Factory trap positions 6235 | -8/Scraptown | Discovered new exit (range 5) 6500 | -8/Scraptown | Visited Cave Peace 6592 | -8/Scraptown | Visited CR-KLE's Repair Center 6684 | -8/Scraptown | Heard Great Nut preacher, LISTEN AND RECITE! 6950 | -8/Scraptown | Visited Comm Corps 7089 | -8/Scraptown | Visited Cyclists 7167 | -8/Scraptown | Visited IN-MT5's Study 8014 | -8/Scraptown | Visited SPCMW 8092 | -8/Scraptown | Visited Assassins FH 8232 | -8/Scraptown | Visited UFD Registry 8232 | -8/Scraptown | Registered with UFD as "Ionboard" 8453 | -8/Scraptown | Visited Chapter 10 8561 | -8/Scraptown | Visited Junk Cannon Lab 8626 | -8/Scraptown | Found Prototype Special Weapon 8655 | -8/Scraptown | Identified Junk Cannon 8693 | -8/Scraptown | Visited Sword Containment 8925 | -8/Scraptown | Visited Cartography Club 9013 | -8/Scraptown | Found Surveybot 17 Chip 9142 | -8/Scraptown | Visited Supply Room 9249 | -8/Scraptown | Visited DA-N13 Charitable Foundation 9269 | -8/Scraptown | Found DCF Scrap (28 items) 9324 | -8/Scraptown | Visited Science Guys 9737 | -8/Scraptown | Visited Infowarlord's Domain 9807 | -8/Scraptown | Visited Derelict Rescue Squad 9832 | -8/Scraptown | Found DRS Beacon 10331 | -8/Scraptown | Build established: Derelict-Mutant 10500 | -8/Scraptown | Found Exp. Terrain Scanner 11165 | -8/Scraptown | Entered Cyclist Reading Room 11179 | -8/Scraptown | Learned location of Zion (-6) 11282 | -8/Scraptown | CR-KLE repaired 7 parts 12025 | -8/Scraptown | Found Prototype Slashing Weapon 12295 | -8/Scraptown | Discovered new exit (range 5) 12503 | -8/Scraptown | Met Optimus 12503 | -8/Scraptown | Accepted into 0bPrime 12702 | -8/Scraptown | Entered Factory 12702 | -6/Factory | Evolved 8 slots: Propulsion x4, Utility x4 12703 | -6/Factory | Loaded intel: 85 trap records 12776 | -6/Factory | Loaded intel: 8 recycling unit locations 12981 | -6/Factory | Identified Companion Sword 13180 | -6/Factory | Spotted B-75 Beast 14044 | -6/Factory | Learned location of Protoforge (-2) 16610 | -6/Factory | Build established: Mutant 16807 | -6/Factory | Lost 3 parts (3n) 16897 | -6/Factory | Core integrity fell below 50% 16902 | -6/Factory | First assault squad dispatched 16938 | -6/Factory | Lost 8 parts (1p2n4u1w) 16944 | -6/Factory | Discovered new exit (range 15) 16953 | -6/Factory | Entered another Factory area 16953 | -5/Factory | Evolved 2 slots: Utility x2 16955 | -5/Factory | Identified exit to DSF 16955 | -5/Factory | Entered DSF 16974 | -5/DSF | Additional patrols routed to DSF 17032 | -5/DSF | Discovered new exit (range 15) 17044 | -5/DSF | Entered Factory 17044 | -4/Factory | Evolved 2 slots: Propulsion x2 17185 | -4/Factory | Discovered new exit (range 6) 17186 | -4/Factory | Entered Extension 17232 | -4/Extension | Build established: Sprinter 17474 | -4/Extension | Rescued a captive Derelict 17476 | -4/Extension | Rescued a captive Derelict 17486 | -4/Extension | Loaded intel: 2 recycling unit locations 17585 | -4/Extension | Rescued a captive Derelict 17605 | -4/Extension | Rescued a captive Derelict 17658 | -4/Extension | Rescued a captive Derelict 17672 | -4/Extension | Spotted B-86 Titan 17675 | -4/Extension | Spotted B-86 Titan 17679 | -4/Extension | Lost 3 allies 17684 | -4/Extension | Rescued a captive Derelict 17686 | -4/Extension | Rescued a captive Derelict 17719 | -4/Extension | Lost 9 parts (5n3u1w) 17733 | -4/Extension | Rescued a captive Derelict 17751 | -4/Extension | Rescued A7 17777 | -4/Extension | Lost 3 parts (1p2n) 17790 | -4/Extension | Rescued a captive Derelict 17992 | -4/Extension | Build established: Mutant 18005 | -4/Extension | Discovered new exit (range 10) 18015 | -4/Extension | Discovered new exit (range 6) 18049 | -4/Extension | Entered Research 18049 | -3/Research | Accompanied by 1 ally (A7) 18049 | -3/Research | Evolved 2 slots: Propulsion x1, Utility x1 18050 | -3/Research | Identified exit to Research 18383 | -3/Research | Lost 12 parts (2p7n3u) 18430 | -3/Research | Core integrity fell below 50% 18446 | -3/Research | Discovered new exit (range 7) 18451 | -3/Research | Entered Testing 18457 | -3/Testing | Lost 6 parts (4n2u) 18508 | -3/Testing | Protovariant out of control (PD-VI8KF7OYYF) 18508 | -3/Testing | Unleashed a protovariant (PD-VI8KF7OYYF) 18534 | -3/Testing | Found Prototype Hackware 18534 | -3/Testing | Identified System Mapper 18656 | -3/Testing | Scanned by Researcher 18701 | -3/Testing | Search patrols dispatched 18810 | -3/Testing | Found Prototype Protection 18810 | -3/Testing | Identified Hvy. Regenerative Plating 18854 | -3/Testing | Found Lgt. Regenerative Plating 18859 | -3/Testing | Found Prototype Protection 18859 | -3/Testing | Identified SHELL Armor 18920 | -3/Testing | Found Hvy. Regenerative Plating 18971 | -3/Testing | Lost 3 parts (1p1u1w) 18994 | -3/Testing | System corruption reached 10% 19044 | -3/Testing | Core integrity fell below 20% 19066 | -3/Testing | Destroyed by P-80 Master with Gamma Rifle Last Messages --------------- 19055_ K-01 Serf collects debris. 19055_ P-80 Master resets P-80 Master, system corruption cleaned. 19055_ Slammed into P-80 Master. 19055_ Hds. Centrium Wheel broken. 19055_ Destabilizing: Short circuit. 19056_ System corrupted: Matter fused (-6). 19056_ Slammed into P-80 Master. 19057_ Adv. Signal Interpreter destroyed. 19057_ System corrupted by crushing effect (+1). 19058_ P-80 Master resets P-80 Master, system corruption cleaned. 19059_ Slammed into P-80 Master. 19062_ K-01 Serf collects debris. 19063_ Broken Hds. Centrium Wheel destroyed. 19063_ Slammed into P-80 Master. 19064_ Destroyed Sml. Battery. 19064_ P-80 Master system corrupted by crushing effect. 19065_ Slammed into P-80 Master. Map ----- +----------------------------------------------------+ | ????????#######+#######* # # """ + ""? | | ??????######## % # # ## ? | | ??????# """ #!= ! | # # """ ## ? | | ??????# """ # %####### # # """ ## ##? | | ??????# """ + #?????###### # """ ## # ? | | ??????# # #??????????# # ????????? | | ??????# # #??????????# # ????????? | | ??????# [ # #???######## # ????????? | | ??????######## ###?# # ########????????? | | ?????????????# T#?# T # #???????????????? | | ?????????????# ""#?# # ########????????? | | ?????????????# ###?# # # ????????? | | ?????????????# #???# # # """ ????????? | | ?????????????# ##??# ! # # """ ????????? | | ?????????????# ########+###= # """ ! #??????? | | ?????????????# ^^ ! %$$!# #??????? | | ?????????????# ^^ ! = +" """ / ?????? | | ?????????????############### # """ #??????? | | ???????????????????######### # """ #??????? | | ???????????????????##*=!*[! # ????????? | | ???????????????????##%*=|=!= ###?####????????? | | ???????????????????##!%%!### # ????????? | | ???????????????????##=k!#### # " ????????? | | ???????????????????##"h%T### # """ ????????? | | ???????????????????###p""### # G ????????? | | ????????????????????#*@p%#?# +???????????????? | | ????????????????????######?# #???????????????? | | ???????????????????????????# #???????????????? | | ???????????????????????????# #???????????????? | | ??????????????????????????? #???????????????? | | ??????????????????????????? #???????????????? | | ???????????????????????????####???????????????? | | ??????????????????????????????????????????????? | | ??????????????????????????????????????????????? | | ??????????????????????????????????????????????? | | ??????????????????????????????????????????????? | | ??????????????????????????????????????????????? | | ??????????????????????????????????????????????? | | ??????????????????????????????????????????????? | | ??????????????????????????????????????????????? | | ??????????????????????????????????????????????? | | ??????????????????????????????????????????????? | | ??????????????????????????????????????????????? | | ??????????????????????????????????????????????? | | ??????????????????????????????????????????????? | | ??????????????????????????????????????????????? | | ??????????????????????????????????????????????? | | ??????????????????????????????????????????????? | | ??????????????????????????????????????????????? | | ??????????????????????????????????????????????? | +----------------------------------------------------+ Best States ------------- Heat Dissipation 81 Energy Generation 23 Energy Capacity 440 Matter Stores 300 Matter Capacity 300 Sight Range 20 Robot Scan Range 16 Terrain Scan Range 30 Terrain Scan Density 1210 Cloak Strength 3 Power Amplification 20 Additional Mass Support 9 Armor Coverage 1650 Resistance: EM 25 Propulsion Shielding 66 Melee Speed Boost 20 Evasion (%) 75 Targeting Accuracy 6 Melee Accuracy 8 Target Analysis 8 Core Analysis 9 Armor Integrity Analysis 30 Recoil Reduction 6 Matter Filtering 50 Offensive Hacking 20 Item Schematics ----------------- Mic. Antimatter Reactor | -4/Extension | Hacked Gravity Flail | -3/Testing | Archive Plasma Lance | -3/Testing | Archive Hvy. Tesla Rifle | -3/Testing | Archive Electron Diverter | -3/Testing | Archive Stealth Drone Bay | -3/Testing | Archive Lgt. Regenerative Plating | -3/Testing | Hacked Adv. Plasma Rifle | -3/Testing | Archive Com. Particle Reactor | -3/Testing | Archive Robot Schematics ------------------ A-02 Transporter | -3/Testing | Archive Y-72 Warden | -3/Testing | Archive B-74 Champion | -3/Testing | Archive Y-64 Sentinel | -3/Testing | Archive Fabricated ------------ Nothing Repaired ---------- Beam Cannon | 37% | -10/Materials Lgt. Treads | 48% | -10/Materials Studied --------- Lgt. Antimatter Reactor | -3/Testing | Hacked Field Propulsion Drive | -3/Testing | Hacked Alien Tech Used ----------------- None Achievements -------------- It Was An Accident, I Swear Omniscient Cartographer Prison Break Rampage We Love MA Challenges ------------ None Game ------ Seed SurveybotStealthCloak Manual? 0 Play Time 02:36:26 Cumulative 50.3 hours Start 2026.08.22 @ 17:58:00 End 2026.08.22 @ 23:03:04 Sessions 1 Manual Loads 0 Difficulty Rogue Special Mode None Game No. 28 Rogue 28 Adventurer 0 Explorer 0 Win Type - Total 0 Types 0/0/0/0/0/0/0/0/0/0 Lore% 43 Gallery% 33 Achievement% 35 Wizard Run 0 Options --------- Layout 1 ASCII 0 Keyboard 0 Movement Mouse Keybinds 0 Fullscreen 1 Font 24/Smallcaps Map View 50x35 Zoom Use 0% Tactical HUD 1 Map Filters NONE Filters NONE Steam 1 RUN: 65ea2b96-e2d1-4612-bbd0-5699c512e9ef